fUST/lending_fUST_20251209
["ID","MTS","AMOUNT","RATE_DAILY","PERIOD"]
[397983613,1765263053970,-850.66,7.397e-05,2]
[397983615,1765263053980,-500.0,7.397e-05,2]
[397983617,1765263053990,-1191.51,7.397e-05,2]
[397983619,1765263054000,-500.0,7.397e-05,2]
[397983621,1765263054010,-904.8,7.397e-05,2]
[397983623,1765263054021,-500.0,7.397e-05,2]
[397983625,1765263054031,-500.0,7.397e-05,2]
[397983627,1765263054040,-596.31,7.397e-05,2]
[397983629,1765263054050,-877.45,7.397e-05,2]
[397983631,1765263054060,-1585.82,7.397e-05,2]
[397983632,1765263054070,-500.0,7.397e-05,2]
[397983633,1765263054080,-751.63,7.397e-05,2]
[397983634,1765263054090,-530.62,7.397e-05,2]
[397983635,1765263054100,-500.0,7.397e-05,2]
[397983636,1765263054110,-560.15,7.397e-05,2]
[397983637,1765263054120,-600.08,7.397e-05,2]
[397983638,1765263054130,-656.07,7.397e-05,2]
[397983639,1765263054140,-500.0,7.397e-05,2]
[397983640,1765263054150,-500.84880374,7.397e-05,2]
[397983641,1765263054161,-830.63,7.397e-05,2]
[397983642,1765263054170,-885.79,7.397e-05,2]
[397983643,1765263054180,-500.0,7.397e-05,2]
[397983644,1765263054190,-954.61,7.397e-05,2]
[397983645,1765263054199,-500.0,7.397e-05,2]
[397983646,1765263054209,-537.72,7.397e-05,2]
[397983647,1765263054219,-500.0,7.397e-05,2]
[397983648,1765263054229,-568.6,7.397e-05,2]
[397983649,1765263054238,-500.0,7.397e-05,2]
[397983650,1765263054248,-659.28,7.397e-05,2]
[397983651,1765263054258,-500.0,7.397e-05,2]
[397983652,1765263054268,-500.0,7.397e-05,2]
[397983653,1765263054277,-694.18,7.397e-05,2]
[397983654,1765263054287,-533.44000062,7.397e-05,2]
[397983655,1765263054296,-500.0,7.397e-05,2]
[397983656,1765263054306,-500.0,7.397e-05,2]
[397983657,1765263054316,-500.0,7.397e-05,2]
[397983658,1765263054325,-1171.4,7.397e-05,2]
[397983659,1765263054335,-500.0,7.397e-05,2]
[397983660,1765263054344,-663.23,7.397e-05,2]
[397983661,1765263054354,-1084.28,7.397e-05,2]
[397983662,1765263054363,-500.0,7.397e-05,2]
[397983663,1765263054372,-1927.36,7.397e-05,2]
[397983664,1765263054381,-589.73,7.397e-05,2]
[397983666,1765263054390,-500.0,7.397e-05,2]
[397983667,1765263054401,-754.34,7.397e-05,2]
[397983668,1765263054410,-616.26,7.397e-05,2]
[397983670,1765263054419,-1361.36,7.397e-05,2]
[397983672,1765263054428,-687.47,7.397e-05,2]
[397983674,1765263054438,-500.0,7.397e-05,2]
[397983676,1765263054447,-588.75,7.397e-05,2]
[397983678,1765263054457,-500.0,7.397e-05,2]
[397983680,1765263054466,-500.0,7.397e-05,2]
[397983682,1765263054476,-581.32,7.397e-05,2]
[397983684,1765263054485,-732.39,7.397e-05,2]
[397983686,1765263054495,-1298.29,7.397e-05,2]
[397983688,1765263054504,-501.9310442,7.397e-05,2]
[397983690,1765263054532,-2181.19,7.397e-05,2]
[397983692,1765263054546,-500.0,7.397e-05,2]
[397983694,1765263054556,-500.0,7.397e-05,2]
[397983696,1765263054566,-500.0,7.397e-05,2]
[397983698,1765263054575,-613.41,7.397e-05,2]
[397983700,1765263054584,-1148.21,7.397e-05,2]
[397983702,1765263054593,-541.21,7.397e-05,2]
[397983704,1765263054603,-500.0,7.397e-05,2]
[397983706,1765263054612,-1320.7,7.397e-05,2]
[397983708,1765263054621,-836.59,7.397e-05,2]
[397983710,1765263054630,-767.58,7.397e-05,2]
[397983712,1765263054640,-500.0,7.397e-05,2]
[397983714,1765263054649,-500.0,7.397e-05,2]
[397983716,1765263054658,-1350.09,7.397e-05,2]
[397983718,1765263054667,-500.0,7.397e-05,2]
[397983720,1765263054676,-646.94119163,7.397e-05,2]
[397983721,1765263054686,-500.0,7.397e-05,2]
[397983723,1765263054695,-924.55,7.397e-05,2]
[397983725,1765263054704,-719.83,7.397e-05,2]
[397983727,1765263054714,-500.0,7.397e-05,2]
[397983729,1765263054723,-500.0,7.397e-05,2]
[397983731,1765263054733,-1624.42,7.397e-05,2]
[397983733,1765263054742,-1100.69,7.397e-05,2]
[397983735,1765263054752,-500.0,7.397e-05,2]
[397983737,1765263054762,-500.0,7.397e-05,2]
[397983739,1765263054771,-500.0,7.397e-05,2]
[397983741,1765263054780,-3716.82,7.397e-05,2]
[397983743,1765263054789,-612.73503189,7.397e-05,2]
[397983745,1765263054799,-420.4041293,7.397e-05,2]
[397983747,1765263054808,-500.0,7.397e-05,2]
[397983749,1765263054818,-994.86,7.397e-05,2]
[397983751,1765263054827,-2528.52,7.397e-05,2]
[397983753,1765263054836,-411.45007205,7.397e-05,2]
[397983755,1765263054846,-4450.68,7.397e-05,2]
[397983757,1765263054856,-538.36,7.397e-05,2]
[397983759,1765263054866,-865.51,7.397e-05,2]
[397983761,1765263054875,-523.95,7.397e-05,2]
[397983763,1765263054885,-1097.39,7.397e-05,2]
[397983766,1765263054898,-500.0,7.397e-05,2]
[397983767,1765263054906,-500.0,7.397e-05,2]
[397983769,1765263054915,-725.24,7.397e-05,2]
[397983771,1765263054925,-500.0,7.397e-05,2]
[397983774,1765263054935,-2280.77,7.397e-05,2]
[397983775,1765263054948,-1612.65,7.397e-05,2]
[397983778,1765263054959,-500.0,7.397e-05,2]
[397983779,1765263054969,-526.53,7.397e-05,2]
[397983781,1765263054979,-500.0,7.397e-05,2]
[397983783,1765263054988,-768.22,7.397e-05,2]
[397983785,1765263054997,-500.0,7.397e-05,2]
[397983787,1765263055007,-1222.62,7.397e-05,2]
[397983789,1765263055017,-1670.67,7.397e-05,2]
[397983791,1765263055027,-500.0,7.397e-05,2]
[397983793,1765263055036,-500.0,7.397e-05,2]
[397983802,1765263055103,-1577.64,7.397e-05,2]
[397983804,1765263055113,-584.96,7.397e-05,2]
[397983806,1765263055123,-696.3,7.397e-05,2]
[397983808,1765263055132,-500.0,7.397e-05,2]
[397983810,1765263055141,-500.0,7.397e-05,2]
[397983812,1765263055151,-405.36510902,7.397e-05,2]
[397983814,1765263055161,-1445.82,7.397e-05,2]
[397983816,1765263055170,-500.0,7.397e-05,2]
[397983817,1765263055179,-500.0,7.397e-05,2]
[397983819,1765263055188,-500.0,7.397e-05,2]
[397983821,1765263055198,-665.68,7.397e-05,2]
[397983823,1765263055207,-1515.55,7.397e-05,2]
[397983825,1765263055217,-601.73,7.397e-05,2]
[397983827,1765263055226,-500.0,7.397e-05,2]
[397983829,1765263055236,-512.79,7.397e-05,2]
[397983831,1765263055246,-51202.98,7.397e-05,2]
[397983834,1765263055256,-825.8,7.397e-05,2]
[397983835,1765263055266,-6446.94,7.397e-05,2]
[397983837,1765263055275,-500.0,7.397e-05,2]
[397983839,1765263055285,-582.2,7.397e-05,2]
[397983841,1765263055294,-501.13613445,7.397e-05,2]
[397983843,1765263055304,-651.79,7.397e-05,2]
[397983845,1765263055313,-500.0,7.397e-05,2]
[397983847,1765263055322,-922.07,7.397e-05,2]
[397983849,1765263055332,-1103.29,7.397e-05,2]
[397983851,1765263055341,-523.87,7.397e-05,2]
[397983853,1765263055351,-1126.29,7.397e-05,2]
[397983855,1765263055360,-414.53944245,7.397e-05,2]
[397983857,1765263055370,-3549.84,7.397e-05,2]
[397983860,1765263055379,-571.42,7.397e-05,2]
[397983861,1765263055389,-676.42,7.397e-05,2]
[397983863,1765263055399,-345.05431249,7.397e-05,2]
[397983865,1765263055408,-968.24,7.397e-05,2]
[397983867,1765263055417,-500.0,7.397e-05,2]
[397983869,1765263055426,-585.77,7.397e-05,2]
[397983871,1765263055436,-529.35871599,7.397e-05,2]
[397983873,1765263055445,-500.0,7.397e-05,2]
[397983875,1765263055455,-1194.08,7.397e-05,2]
[397983877,1765263055466,-504.83860746,7.397e-05,2]
[397983880,1765263055475,-700.36,7.397e-05,2]
[397983881,1765263055485,-801.71,7.397e-05,2]
[397983883,1765263055495,-618.01,7.397e-05,2]
[397983885,1765263055504,-14567.01,7.397e-05,2]
[397983887,1765263055514,-1214.81,7.397e-05,2]
[397983890,1765263055524,-500.0,7.397e-05,2]
[397983891,1765263055533,-4667.19,7.397e-05,2]
[397983894,1765263055543,-500.0,7.397e-05,2]
[397983896,1765263055553,-2209.11,7.397e-05,2]
[397983898,1765263055563,-501.35486852,7.397e-05,2]
[397983900,1765263055573,-5032.12,7.397e-05,2]
[397983902,1765263055582,-500.0,7.397e-05,2]
[397983904,1765263055591,-869.77,7.397e-05,2]
[397983906,1765263055600,-1075.81,7.397e-05,2]
[397983908,1765263055611,-500.0,7.397e-05,2]
[397983910,1765263055622,-525.7,7.397e-05,2]
[397983912,1765263055631,-964.48,7.397e-05,2]
[397983914,1765263055640,-609.46,7.397e-05,2]
[397983916,1765263055649,-529.56,7.397e-05,2]
[397983918,1765263055659,-500.50882155,7.397e-05,2]
[397983920,1765263055669,-2864.2,7.397e-05,2]
[397983922,1765263055678,-1003.39,7.397e-05,2]
[397983924,1765263055688,-619.35,7.397e-05,2]
[397983926,1765263055698,-966.02,7.397e-05,2]
[397983928,1765263055708,-979.29,7.397e-05,2]
[397983930,1765263055718,-500.0,7.397e-05,2]
[397983932,1765263055727,-6836.28,7.397e-05,2]
[397983934,1765263055736,-4324.93,7.397e-05,2]
[397983936,1765263055746,-500.0,7.397e-05,2]
[397983938,1765263055756,-2220.07,7.397e-05,2]
[397983940,1765263055765,-500.0,7.397e-05,2]
[397983942,1765263055775,-500.0,7.397e-05,2]
[397983944,1765263055785,-500.0,7.397e-05,2]
[397983946,1765263055794,-1234.5,7.397e-05,2]
[397983948,1765263055805,-1842.07,7.397e-05,2]
[397983950,1765263055815,-559.47,7.397e-05,2]
[397983952,1765263055824,-500.0,7.397e-05,2]
[397983954,1765263055834,-1184.19,7.397e-05,2]
[397983956,1765263055843,-501.62123148,7.397e-05,2]
[397983958,1765263055853,-6249.05,7.397e-05,2]
[397983960,1765263055863,-500.0,7.397e-05,2]
[397983962,1765263055872,-500.0,7.397e-05,2]
[397983964,1765263055881,-1008.9,7.397e-05,2]
[397983966,1765263055891,-500.0,7.397e-05,2]
[397983968,1765263055900,-1494.92,7.397e-05,2]
[397983970,1765263055909,-1508.52,7.397e-05,2]
[397983972,1765263055919,-2141.29,7.397e-05,2]
[397983974,1765263055930,-930.3,7.397e-05,2]
[397983976,1765263055942,-2316.74,7.397e-05,2]
[397983978,1765263055954,-500.0,7.397e-05,2]
[397983979,1765263055963,-500.84934436,7.397e-05,2]
[397983982,1765263055974,-515.78,7.397e-05,2]
[397983983,1765263055986,-1539.86,7.397e-05,2]
[397983985,1765263055995,-1735.18,7.397e-05,2]
[397983987,1765263056004,-662.87,7.397e-05,2]
[397983989,1765263056013,-500.0,7.397e-05,2]
[397983991,1765263056026,-1165.87,7.397e-05,2]
[397983993,1765263056035,-1932.25,7.397e-05,2]
[397983995,1765263056045,-1764.68,7.397e-05,2]
[397983997,1765263056055,-1715.49,7.397e-05,2]
[397983999,1765263056064,-500.0,7.397e-05,2]
[397984001,1765263056075,-1044.91,7.397e-05,2]
[397984003,1765263056085,-796.28,7.397e-05,2]
[397984005,1765263056095,-1615.61,7.397e-05,2]
[397984007,1765263056103,-507.1,7.397e-05,2]
[397984009,1765263056113,-8475.48,7.397e-05,2]
[397984011,1765263056122,-353.50506019,7.397e-05,2]
[397984013,1765263056132,-2712.79,7.397e-05,2]
[397984015,1765263056142,-500.0,7.397e-05,2]
[397984017,1765263056152,-2872.46,7.397e-05,2]
[397984019,1765263056161,-847.74,7.397e-05,2]
[397984021,1765263056170,-5145.6,7.397e-05,2]
[397984023,1765263056180,-763.41,7.397e-05,2]
[397984025,1765263056189,-8574.49,7.397e-05,2]
[397984027,1765263056199,-500.0,7.397e-05,2]
[397984029,1765263056208,-2989.19,7.397e-05,2]
[397984031,1765263056218,-500.0,7.397e-05,2]
[397984033,1765263056227,-500.0,7.397e-05,2]
[397984035,1765263056236,-730.33,7.397e-05,2]
[397984037,1765263056246,-502.11,7.397e-05,2]
[397984039,1765263056255,-21162.75,7.397e-05,2]
[397984041,1765263056265,-9941.27,7.397e-05,2]
[397984043,1765263056274,-911.87,7.397e-05,2]
[397984045,1765263056282,-575.58,7.397e-05,2]
[397984047,1765263056291,-500.0,7.397e-05,2]
[397984049,1765263056301,-500.0,7.397e-05,2]
[397984051,1765263056310,-571.07,7.397e-05,2]
[397984053,1765263056326,-513.66,7.397e-05,2]
[397984055,1765263056335,-500.0,7.397e-05,2]
[397984057,1765263056344,-203.15517845,7.397e-05,2]
[397984059,1765263056354,-500.0,7.397e-05,2]
[397984061,1765263056363,-2074.38,7.397e-05,2]
[397984063,1765263056372,-1317.05,7.397e-05,2]
[397984065,1765263056382,-500.0,7.397e-05,2]
[397984067,1765263056391,-904.93,7.397e-05,2]
[397984069,1765263056399,-4712.48,7.397e-05,2]
[397984071,1765263056409,-2210.6,7.397e-05,2]
[397984073,1765263056418,-500.0,7.397e-05,2]
[397984075,1765263056427,-1202.38,7.397e-05,2]
[397984077,1765263056436,-1680.98,7.397e-05,2]
[397984079,1765263056445,-1858.36,7.397e-05,2]
[397984081,1765263056454,-854.02,7.397e-05,2]
[397984083,1765263056463,-596.73,7.397e-05,2]
[397984085,1765263056472,-1138.4,7.397e-05,2]
[397984087,1765263056481,-1792.78,7.397e-05,2]
[397984089,1765263056491,-1058.43,7.397e-05,2]
[397984091,1765263056500,-3302.46,7.397e-05,2]
[397984093,1765263056509,-500.0,7.397e-05,2]
[397984095,1765263056519,-437.77439632,7.397e-05,2]
[397984096,1765263056528,-630.96,7.397e-05,2]
[397984099,1765263056537,-5841.03,7.397e-05,2]
[397984101,1765263056547,-254.47159617,7.397e-05,2]
[397984102,1765263056556,-3673.09,7.397e-05,2]
[397984104,1765263056566,-1950.93,7.397e-05,2]
[397984107,1765263056575,-500.0,7.397e-05,2]
[397984108,1765263056584,-153.0,7.397e-05,2]
[397984111,1765263056594,-153.0,7.397e-05,2]
[397984112,1765263056603,-153.0,7.397e-05,2]
[397984115,1765263056612,-397.5243554,7.534e-05,2]
[397984117,1765263056622,-397.5243554,7.534e-05,2]
[397984118,1765263056631,-397.5243554,7.534e-05,2]
[397984120,1765263056640,-473.73864541,7.671e-05,2]
[397984122,1765263056650,-500.0,7.671e-05,2]
[397984125,1765263056659,-500.0,7.671e-05,2]
[397984126,1765263056669,-500.0,7.671e-05,2]
[397984128,1765263056678,-458.0110831,7.671e-05,2]
[397984130,1765263056688,-557.38824306,7.671e-05,2]
[397984133,1765263056697,-500.0,7.671e-05,2]
[397984135,1765263056706,-500.0,7.671e-05,2]
[397984136,1765263056716,-500.0,7.671e-05,2]
[397984138,1765263056725,-500.0,7.671e-05,2]
[397984141,1765263056734,-500.0,7.671e-05,2]
[397984142,1765263056744,-500.0,7.671e-05,2]
[397984145,1765263056753,-500.0,7.671e-05,2]
[397984146,1765263056763,-500.0,7.671e-05,2]
[397984148,1765263056772,-1015.52,7.671e-05,2]
[397984150,1765263056782,-500.0,7.671e-05,2]
[397984151,1765263056791,-500.0,7.671e-05,2]
[397984152,1765263056801,-925.62,7.671e-05,2]
[397984153,1765263056811,-743.93,7.671e-05,2]
[397984154,1765263056820,-500.0,7.671e-05,2]
[397984155,1765263056830,-654.42,7.671e-05,2]
[397984157,1765263056840,-500.0,7.671e-05,2]
[397984159,1765263056850,-500.0,7.671e-05,2]
[397984161,1765263056859,-500.0,7.671e-05,2]
[397984163,1765263056869,-462.71947277,7.671e-05,2]
[397984165,1765263056878,-500.0,7.671e-05,2]
[397984167,1765263056889,-803.61,7.671e-05,2]
[397984169,1765263056898,-500.0,7.671e-05,2]
[397984171,1765263056907,-361.21833366,7.671e-05,2]
[397984173,1765263056917,-528.77,7.671e-05,2]
[397984175,1765263056926,-778.89,7.671e-05,2]
[397984177,1765263056937,-500.0,7.671e-05,2]
[397984179,1765263056950,-500.0,7.671e-05,2]
[397984181,1765263056960,-500.0,7.671e-05,2]
[397984183,1765263056969,-233.91007282,7.671e-05,2]
[397984185,1765263056979,-806.57,7.671e-05,2]
[397984187,1765263056989,-500.0,7.671e-05,2]
[397984190,1765263057000,-692.99,7.671e-05,2]
[397984192,1765263057009,-500.0,7.671e-05,2]
[397984194,1765263057020,-500.0,7.671e-05,2]
[397984196,1765263057029,-500.0,7.671e-05,2]
[397984198,1765263057039,-500.0,7.671e-05,2]
[397984199,1765263057048,-245.6129985,7.671e-05,2]
[397984202,1765263057058,-661.09,7.671e-05,2]
[397984204,1765263057068,-500.0,7.671e-05,2]
[397984206,1765263057078,-874.48,7.671e-05,2]
[397984208,1765263057088,-500.0,7.671e-05,2]
[397984210,1765263057097,-500.0,7.671e-05,2]
[397984212,1765263057107,-500.0,7.671e-05,2]
[397984213,1765263057115,-500.0,7.671e-05,2]
[397984215,1765263057125,-500.0,7.671e-05,2]
[397984217,1765263057135,-525.66,7.671e-05,2]
[397984220,1765263057144,-500.0,7.671e-05,2]
[397984222,1765263057154,-500.0,7.671e-05,2]
[397984224,1765263057163,-501.84,7.671e-05,2]
[397984226,1765263057173,-500.0,7.671e-05,2]
[397984228,1765263057182,-500.0,7.671e-05,2]
[397984229,1765263057192,-500.0,7.671e-05,2]
[397984231,1765263057201,-500.0,7.671e-05,2]
[397984233,1765263057210,-757.8,7.671e-05,2]
[397984236,1765263057221,-500.0,7.671e-05,2]
[397984238,1765263057230,-500.0,7.671e-05,2]
[397984240,1765263057239,-501.86,7.671e-05,2]
[397984242,1765263057249,-500.0,7.671e-05,2]
[397984244,1765263057261,-500.0,7.671e-05,2]
[397984246,1765263057272,-500.0,7.671e-05,2]
[397984248,1765263057291,-4104.31,7.671e-05,2]
[397984250,1765263057302,-500.0,7.671e-05,2]
[397984252,1765263057311,-500.0,7.671e-05,2]
[397984254,1765263057321,-500.0,7.671e-05,2]
[397984256,1765263057331,-500.0,7.671e-05,2]
[397984258,1765263057341,-500.0,7.671e-05,2]
[397984260,1765263057351,-2011.97,7.671e-05,2]
[397984263,1765263057362,-891.37,7.671e-05,2]
[397984265,1765263057371,-861.0,7.671e-05,2]
[397984267,1765263057381,-500.0,7.671e-05,2]
[397984269,1765263057391,-500.0,7.671e-05,2]
[397984271,1765263057400,-519.92,7.671e-05,2]
[397984273,1765263057409,-500.0,7.671e-05,2]
[397984275,1765263057419,-811.52,7.671e-05,2]
[397984277,1765263057428,-825.4,7.671e-05,2]
[397984279,1765263057438,-500.0,7.671e-05,2]
[397984281,1765263057448,-932.06,7.671e-05,2]
[397984283,1765263057457,-500.0,7.671e-05,2]
[397984285,1765263057466,-1267.23,7.671e-05,2]
[397984287,1765263057476,-726.79,7.671e-05,2]
[397984289,1765263057485,-593.24,7.671e-05,2]
[397984291,1765263057494,-500.0,7.671e-05,2]
[397984293,1765263057503,-548.5,7.671e-05,2]
[397984295,1765263057513,-753.65,7.671e-05,2]
[397984297,1765263057522,-500.0,7.671e-05,2]
[397984299,1765263057531,-500.0,7.671e-05,2]
[397984301,1765263057541,-1044.01,7.671e-05,2]
[397984303,1765263057550,-1811.55,7.671e-05,2]
[397984305,1765263057560,-567.34,7.671e-05,2]
[397984307,1765263057570,-614.17,7.671e-05,2]
[397984309,1765263057579,-946.8,7.671e-05,2]
[397984311,1765263057588,-500.0,7.671e-05,2]
[397984313,1765263057598,-657.81,7.671e-05,2]
[397984315,1765263057607,-500.0,7.671e-05,2]
[397984317,1765263057617,-500.0,7.671e-05,2]
[397984319,1765263057626,-500.0,7.671e-05,2]
[397984321,1765263057636,-878.51,7.671e-05,2]
[397984323,1765263057645,-903.11,7.671e-05,2]
[397984325,1765263057655,-722.74,7.671e-05,2]
[397984327,1765263057665,-850.66,7.671e-05,2]
[397984329,1765263057674,-500.0,7.671e-05,2]
[397984331,1765263057684,-1191.51,7.671e-05,2]
[397984333,1765263057694,-500.0,7.671e-05,2]
[397984335,1765263057703,-904.8,7.671e-05,2]
[397984337,1765263057713,-500.0,7.671e-05,2]
[397984339,1765263057723,-500.0,7.671e-05,2]
[397984341,1765263057733,-596.31,7.671e-05,2]
[397984343,1765263057743,-877.45,7.671e-05,2]
[397984345,1765263057752,-1585.82,7.671e-05,2]
[397984348,1765263057764,-500.0,7.671e-05,2]
[397984350,1765263057773,-751.63,7.671e-05,2]
[397984352,1765263057783,-530.62,7.671e-05,2]
[397984354,1765263057794,-500.0,7.671e-05,2]
[397984356,1765263057804,-560.15,7.671e-05,2]
[397984358,1765263057814,-600.08,7.671e-05,2]
[397984360,1765263057823,-656.07,7.671e-05,2]
[397984362,1765263057832,-500.0,7.671e-05,2]
[397984364,1765263057842,-830.63,7.671e-05,2]
[397984366,1765263057851,-885.79,7.671e-05,2]
[397984368,1765263057860,-169.40447453,7.671e-05,2]
[397984370,1765263057871,-954.61,7.671e-05,2]
[397984372,1765263057881,-500.0,7.671e-05,2]
[397984374,1765263057891,-537.72,7.671e-05,2]
[397984376,1765263057900,-500.0,7.671e-05,2]
[397984378,1765263057910,-568.6,7.671e-05,2]
[397984380,1765263057920,-500.0,7.671e-05,2]
[397984383,1765263057930,-659.28,7.671e-05,2]
[397984385,1765263057943,-500.0,7.671e-05,2]
[397984387,1765263057952,-500.0,7.671e-05,2]
[397984389,1765263057962,-694.18,7.671e-05,2]
[397984391,1765263057971,-500.0,7.671e-05,2]
[397984393,1765263057982,-500.0,7.671e-05,2]
[397984395,1765263057991,-500.0,7.671e-05,2]
[397984397,1765263058001,-1171.4,7.671e-05,2]
[397984399,1765263058010,-500.0,7.671e-05,2]
[397984401,1765263058021,-663.23,7.671e-05,2]
[397984403,1765263058030,-1084.28,7.671e-05,2]
[397984405,1765263058039,-500.0,7.671e-05,2]
[397984407,1765263058049,-1927.36,7.671e-05,2]
[397984409,1765263058061,-589.73,7.671e-05,2]
[397984411,1765263058070,-186.35899383,7.671e-05,2]
[397984413,1765263058080,-754.34,7.671e-05,2]
[397984415,1765263058090,-616.26,7.671e-05,2]
[397984417,1765263058099,-1361.36,7.671e-05,2]
[397984419,1765263058109,-687.47,7.671e-05,2]
[397984421,1765263058119,-500.0,7.671e-05,2]
[397984423,1765263058128,-588.75,7.671e-05,2]
[397984425,1765263058138,-500.0,7.671e-05,2]
[397984427,1765263058147,-501.90462353,7.671e-05,2]
[397984429,1765263058157,-581.32,7.671e-05,2]
[397984431,1765263058167,-732.39,7.671e-05,2]
[397984433,1765263058176,-1298.29,7.671e-05,2]
[397984435,1765263058186,-2181.19,7.671e-05,2]
[397984437,1765263058195,-500.0,7.671e-05,2]
[397984439,1765263058205,-500.0,7.671e-05,2]
[397984441,1765263058214,-500.0,7.671e-05,2]
[397984443,1765263058224,-613.41,7.671e-05,2]
[397984445,1765263058233,-1148.21,7.671e-05,2]
[397984447,1765263058243,-541.21,7.671e-05,2]
[397984449,1765263058252,-500.0,7.671e-05,2]
[397984451,1765263058262,-1320.7,7.671e-05,2]
[397984453,1765263058271,-836.59,7.671e-05,2]
[397984455,1765263058280,-767.58,7.671e-05,2]
[397984457,1765263058289,-500.0,7.671e-05,2]
[397984459,1765263058299,-500.0,7.671e-05,2]
[397984461,1765263058310,-1350.09,7.671e-05,2]
[397984463,1765263058323,-500.0,7.671e-05,2]
[397984465,1765263058333,-500.0,7.671e-05,2]
[397984467,1765263058345,-924.55,7.671e-05,2]
[397984469,1765263058354,-719.83,7.671e-05,2]
[397984472,1765263058364,-500.0,7.671e-05,2]
[397984474,1765263058373,-500.0,7.671e-05,2]
[397984476,1765263058383,-1624.42,7.671e-05,2]
[397984478,1765263058393,-1100.69,7.671e-05,2]
[397984480,1765263058402,-500.0,7.671e-05,2]
[397984482,1765263058411,-500.0,7.671e-05,2]
[397984484,1765263058421,-633.52535174,7.671e-05,2]
[397984486,1765263058431,-3716.82,7.671e-05,2]
[397984488,1765263058440,-500.0,7.671e-05,2]
[397984490,1765263058450,-994.86,7.671e-05,2]
[397984491,1765263058459,-2528.52,7.671e-05,2]
[397984494,1765263058469,-4450.68,7.671e-05,2]
[397984496,1765263058479,-538.36,7.671e-05,2]
[397984497,1765263058489,-865.51,7.671e-05,2]
[397984499,1765263058499,-523.95,7.671e-05,2]
[397984502,1765263058508,-1097.39,7.671e-05,2]
[397984504,1765263058518,-500.0,7.671e-05,2]
[397984506,1765263058528,-500.0,7.671e-05,2]
[397984508,1765263058537,-725.24,7.671e-05,2]
[397984510,1765263058547,-500.0,7.671e-05,2]
[397984512,1765263058556,-2280.77,7.671e-05,2]
[397984514,1765263058565,-1612.65,7.671e-05,2]
[397984516,1765263058575,-500.0,7.671e-05,2]
[397984518,1765263058584,-526.53,7.671e-05,2]
[397984519,1765263058594,-500.0,7.671e-05,2]
[397984522,1765263058603,-768.22,7.671e-05,2]
[397984523,1765263058613,-500.0,7.671e-05,2]
[397984525,1765263058622,-1222.62,7.671e-05,2]
[397984528,1765263058632,-1670.67,7.671e-05,2]
[397984529,1765263058642,-500.0,7.671e-05,2]
[397984532,1765263058651,-500.0,7.671e-05,2]
[397984533,1765263058661,-1577.64,7.671e-05,2]
[397984536,1765263058671,-584.96,7.671e-05,2]
[397984538,1765263058681,-696.3,7.671e-05,2]
[397984540,1765263058690,-500.0,7.671e-05,2]
[397984542,1765263058701,-630.55036838,7.671e-05,2]
[397984544,1765263058712,-1445.82,7.671e-05,2]
[397984546,1765263058722,-500.0,7.671e-05,2]
[397984548,1765263058731,-500.0,7.671e-05,2]
[397984550,1765263058740,-500.0,7.671e-05,2]
[397984552,1765263058750,-665.68,7.671e-05,2]
[397984554,1765263058759,-1515.55,7.671e-05,2]
[397984556,1765263058769,-601.73,7.671e-05,2]
[397984558,1765263058778,-500.0,7.671e-05,2]
[397984560,1765263058788,-512.79,7.671e-05,2]
[397984562,1765263058797,-51202.98,7.671e-05,2]
[397984564,1765263058807,-825.8,7.671e-05,2]
[397984566,1765263058817,-6446.94,7.671e-05,2]
[397984568,1765263058826,-500.0,7.671e-05,2]
[397984570,1765263058836,-582.2,7.671e-05,2]
[397984572,1765263058845,-651.79,7.671e-05,2]
[397984574,1765263058855,-500.0,7.671e-05,2]
[397984576,1765263058865,-922.07,7.671e-05,2]
[397984578,1765263058874,-1103.29,7.671e-05,2]
[397984580,1765263058884,-523.87,7.671e-05,2]